fUSD/lending_fUSD_20240614
["ID","MTS","AMOUNT","RATE_DAILY","PERIOD"]
[329461886,1718379060349,-463.35365184,0.00024109,3]
[329461887,1718379060377,-600.71634816,0.00024109,3]
[329461888,1718379060390,-500.0,0.00024109,3]
[329461889,1718379060410,-500.0,0.00024109,3]
[329461890,1718379060422,-398.66620958,0.00024109,3]
[329461891,1718379060455,-101.33379042,0.00024109,3]
[329461892,1718379060468,-500.0,0.00024109,3]
[329461893,1718379060491,-790.96,0.00024109,3]
[329461894,1718379060554,-500.0,0.00024109,3]
[329461895,1718379060592,-500.0,0.00024109,3]
[329461896,1718379060610,-500.0,0.00024109,3]
[329461897,1718379060629,-500.0,0.00024109,3]
[329461898,1718379060643,-500.0,0.00024109,3]
[329461899,1718379060667,-500.0,0.00024109,3]
[329461900,1718379060682,-659.51,0.00024109,3]
[329461901,1718379060695,-592.49,0.00024109,3]
[329461902,1718379060737,-862.38,0.00024109,3]
[329461903,1718379060772,-500.0,0.00024109,3]
[329461904,1718379060830,-500.0,0.00024109,3]
[329461905,1718379060871,-922.27,0.00024109,3]
[329461906,1718379060883,-718.26,0.00024109,3]
[329461907,1718379060894,-683.59,0.00024109,3]
[329461908,1718379060909,-500.0,0.00024109,3]
[329461909,1718379060919,-500.0,0.00024109,3]
[329461910,1718379060930,-500.0,0.00024109,3]
[329461911,1718379060940,-812.95,0.00024109,3]
[329461912,1718379060958,-500.0,0.00024109,3]
[329461913,1718379060994,-500.0,0.00024109,3]
[329461914,1718379061005,-500.0,0.00024109,3]
[329461915,1718379061018,-177.798192,0.00024109,7]
[329461916,1718379061028,-614.29,0.00024109,3]
[329461917,1718379061057,-977.77,0.00024109,3]
[329461918,1718379061082,-500.0,0.00024109,3]
[329461919,1718379061104,-500.0,0.00024109,3]
[329461920,1718379061115,-500.0,0.00024109,3]
[329461921,1718379061129,-500.0,0.00024109,3]
[329461922,1718379061152,-500.0,0.00024109,3]
[329461923,1718379061166,-500.0,0.00024109,3]
[329461924,1718379061208,-500.0,0.00024109,3]
[329461925,1718379061224,-1286.16,0.00024109,3]
[329461926,1718379061252,-606.05,0.00024109,3]
[329461927,1718379061263,-633.38,0.00024109,3]
[329461928,1718379061273,-500.0,0.00024109,3]
[329461929,1718379061285,-1096.44,0.00024109,3]
[329461930,1718379061296,-666.15,0.00024109,7]
[329461931,1718379061316,-500.0,0.00024109,3]
[329461932,1718379061333,-982.95,0.00024109,3]
[329461933,1718379061346,-500.0,0.00024109,3]
[329461934,1718379061358,-500.0,0.00024109,3]
[329461935,1718379061369,-151.0,0.00024109,7]
[329461936,1718379061381,-505.92815425,0.00024109,3]
[329461937,1718379061393,-500.0,0.00024109,3]
[329461938,1718379061425,-1838.58,0.00024109,3]
[329461939,1718379061439,-500.0,0.00024109,3]
[329461940,1718379061461,-510.48,0.00024109,3]
[329461941,1718379061479,-500.0,0.00024109,3]
[329461942,1718379061506,-937.54,0.00024109,3]
[329461943,1718379061516,-831.37,0.00024109,3]
[329461944,1718379061532,-528.15139747,0.00024109,3]
[329461945,1718379061566,-1094.14,0.00024109,3]
[329461946,1718379061582,-500.0,0.00024109,3]
[329461947,1718379061611,-500.0,0.00024109,3]
[329461948,1718379061622,-1610.05615,0.00024109,2]
[329461949,1718379061653,-539.3604631,0.00024109,3]
[329461950,1718379061666,-559.71787178,0.00024109,3]
[329461951,1718379061677,-741.97,0.00024109,3]
[329461952,1718379061688,-500.0,0.00024109,3]
[329461953,1718379061699,-208.11001379,0.00024109,3]
[329461954,1718379061715,-1226.89,0.00024109,3]
[329461955,1718379061732,-500.0,0.00024109,3]
[329461956,1718379061764,-683.81,0.00024109,3]
[329461957,1718379061824,-500.0,0.00024109,3]
[329461958,1718379061852,-3054.69,0.00024109,3]
[329461959,1718379061865,-782.7,0.00024109,3]
[329461960,1718379061880,-1168.1,0.00024109,3]
[329461961,1718379061908,-987.55,0.00024109,3]
[329461962,1718379061934,-500.0,0.00024109,3]
[329461963,1718379061955,-500.0,0.00024109,3]
[329461964,1718379061974,-500.0,0.00024109,3]
[329461965,1718379062000,-500.0,0.00024109,3]
[329461966,1718379062023,-885.61,0.00024109,3]
[329461967,1718379062044,-511.02083748,0.00024109,3]
[329461968,1718379062071,-500.0,0.00024109,3]
[329461969,1718379062090,-500.0,0.00024109,3]
[329461970,1718379062118,-500.0,0.00024109,3]
[329461971,1718379062128,-234.65183858,0.00024109,3]
[329461972,1718379062153,-500.0,0.00024109,3]
[329461973,1718379062164,-500.0,0.00024109,3]
[329461974,1718379062175,-2870.02,0.00024109,3]
[329461975,1718379062210,-3020.62,0.00024109,3]
[329461976,1718379062223,-500.0,0.00024109,3]
[329461977,1718379062235,-500.0,0.00024109,3]
[329461978,1718379062260,-511.81,0.00024109,3]
[329461979,1718379062288,-1359.11,0.00024109,3]
[329461980,1718379062302,-500.0,0.00024109,3]
[329461981,1718379062315,-831.07,0.00024109,3]
[329461982,1718379062341,-500.0,0.00024109,3]
[329461983,1718379062363,-1047.14,0.00024109,3]
[329461984,1718379062380,-1099.16,0.00024109,3]
[329461985,1718379062394,-500.0,0.00024109,3]
[329461986,1718379062416,-6229.13,0.00024109,3]
[329461987,1718379062428,-500.0,0.00024109,3]
[329461988,1718379062446,-500.0,0.00024109,3]
[329461989,1718379062457,-400.59643376,0.00024109,3]
[329461990,1718379062468,-500.0,0.00024109,3]
[329461991,1718379062479,-539.71,0.00024109,3]
[329461992,1718379062490,-544.33867869,0.00024109,3]
[329461993,1718379062500,-500.0,0.00024109,3]
[329461994,1718379062518,-999.26362518,0.00024109,3]
[329461995,1718379062543,-767.28637482,0.00024109,3]
[329461996,1718379062586,-548.14749041,0.00024109,3]
[329461997,1718379062597,-5684.05360214,0.00024109,3]
[329461998,1718379062610,-116.97639786,0.00024109,3]
[329461999,1718379062638,-500.0,0.00024109,3]
[329462000,1718379062651,-596.19,0.00024109,3]
[329462001,1718379062672,-712.20909862,0.00024109,3]
[329462002,1718379062943,-424.90781737,0.00024014,2]
[329462003,1718379062972,-3018.71090138,0.00024109,3]
[329462004,1718379062996,-500.0,0.00024109,3]
[329462005,1718379063008,-500.0,0.00024109,3]
[329462006,1718379063027,-500.0,0.00024109,3]
[329462007,1718379063042,-1788.69,0.00024109,3]
[329462008,1718379063055,-392.31208125,0.00024109,3]
[329462009,1718379063096,-142.12791875,0.00024109,3]
[329462010,1718379063301,-500.0,0.00024109,3]
[329462011,1718379063314,-500.0,0.00024109,3]
[329462012,1718379063329,-3938.47,0.00024109,3]
[329462013,1718379063341,-500.0,0.00024109,3]
[329462014,1718379063360,-1383.0,0.00024109,3]
[329462015,1718379063385,-500.0,0.00024109,3]
[329462016,1718379063397,-5157.43,0.00024109,3]
[329462017,1718379063417,-505.22135644,0.00024109,3]
[329462018,1718379063436,-500.0,0.00024109,3]
[329462019,1718379063448,-500.0,0.00024109,3]
[329462020,1718379063459,-561.8,0.00024109,3]
[329462021,1718379063505,-1572.94,0.00024109,3]
[329462022,1718379063522,-542.98,0.00024109,3]
[329462023,1718379063544,-500.0,0.00024109,3]
[329462024,1718379063556,-509.81805755,0.00024109,3]
[329462025,1718379063571,-1884.52,0.00024109,3]
[329462026,1718379063591,-513.81764231,0.00024109,3]
[329462027,1718379063604,-713.34,0.00024109,3]
[329462028,1718379063627,-500.0,0.00024109,3]
[329462029,1718379063649,-500.0,0.00024109,3]
[329462030,1718379063681,-727.1,0.00024109,3]
[329462031,1718379063698,-515.99459237,0.00024109,3]
[329462032,1718379063711,-5832.75,0.00024109,3]
[329462033,1718379063723,-469.953379,0.00024109,3]
[329462034,1718379063734,-1232.35,0.00024109,3]
[329462035,1718379063749,-1138.88,0.00024109,3]
[329462036,1718379063766,-864.29,0.00024109,3]
[329462037,1718379063779,-2053.04,0.00024109,3]
[329462038,1718379063791,-500.0,0.00024109,3]
[329462039,1718379063808,-2904.47,0.00024109,3]
[329462040,1718379063845,-2850.26,0.00024109,3]
[329462041,1718379063874,-516.80380941,0.00024109,3]
[329462042,1718379063896,-644.88,0.00024109,3]
[329462043,1718379063925,-539.22318208,0.00024109,3]
[329462044,1718379063945,-710.18,0.00024109,3]
[329462045,1718379063962,-534.03,0.00024109,3]
[329462046,1718379063974,-605.58,0.00024109,3]
[329462047,1718379063994,-500.0,0.00024109,3]
[329462048,1718379064014,-884.16,0.00024109,3]
[329462049,1718379064030,-503.15776771,0.00024109,3]
[329462050,1718379064058,-580.06,0.00024109,3]
[329462051,1718379064071,-1571.66,0.00024109,3]
[329462052,1718379064090,-500.0,0.00024109,3]
[329462053,1718379064110,-8495.57,0.00024109,3]
[329462054,1718379064121,-500.0,0.00024109,3]
[329462055,1718379064140,-795.9,0.00024109,3]
[329462056,1718379064162,-500.0,0.00024109,3]
[329462057,1718379064186,-500.0,0.00024109,3]
[329462058,1718379064200,-500.0,0.00024109,3]
[329462059,1718379064217,-2737.07,0.00024109,3]
[329462060,1718379064237,-500.0,0.00024109,3]
[329462061,1718379064247,-920.56,0.00024109,3]
[329462062,1718379064257,-658.28,0.00024109,3]
[329462063,1718379064277,-1027.06,0.00024109,3]
[329462064,1718379064287,-500.0,0.00024109,3]
[329462065,1718379064298,-517.34505911,0.00024109,3]
[329462066,1718379064310,-500.0,0.00024109,3]
[329462067,1718379064320,-724.76,0.00024109,3]
[329462068,1718379064351,-500.0,0.00024109,3]
[329462069,1718379064362,-967.69,0.00024109,3]
[329462070,1718379064373,-500.0,0.00024109,3]
[329462071,1718379064388,-1736.97,0.00024109,3]
[329462072,1718379064414,-500.0,0.00024109,3]
[329462073,1718379064429,-510.97025192,0.00024109,3]
[329462074,1718379064444,-500.0,0.00024109,3]
[329462075,1718379064464,-812.56,0.00024109,3]
[329462076,1718379064474,-4604.31,0.00024109,3]
[329462077,1718379064485,-829.56,0.00024109,3]
[329462078,1718379064495,-500.0,0.00024109,3]
[329462079,1718379064505,-524.46,0.00024109,3]
[329462080,1718379064515,-500.0,0.00024109,3]
[329462081,1718379064526,-3500.34,0.00024109,3]
[329462082,1718379064537,-1242.01,0.00024109,3]
[329462083,1718379064549,-500.0,0.00024109,3]
[329462084,1718379064559,-500.0,0.00024109,3]
[329462085,1718379064569,-733.24,0.00024109,3]
[329462086,1718379064584,-1290.13,0.00024109,3]
[329462087,1718379064595,-759.61,0.00024109,3]
[329462088,1718379064605,-2996.49,0.00024109,3]
[329462089,1718379064620,-500.0,0.00024109,3]
[329462090,1718379064631,-1180.76,0.00024109,3]
[329462091,1718379064641,-3834.7,0.00024109,3]
[329462092,1718379064657,-500.0,0.00024109,3]
[329462093,1718379064681,-500.0,0.00024109,3]
[329462094,1718379064693,-583.7,0.00024109,3]
[329462095,1718379064715,-1166.51,0.00024109,3]
[329462096,1718379064730,-500.0,0.00024109,3]
[329462097,1718379064741,-626.55,0.00024109,3]
[329462098,1718379064754,-678.72,0.00024109,3]
[329462099,1718379064765,-678.72,0.00024109,3]
[329462100,1718379064804,-678.72,0.00024109,3]
[329462101,1718379064815,-1510.02,0.00024109,3]
[329462102,1718379064831,-500.0,0.00024109,3]
[329462103,1718379064852,-678.72,0.00024109,3]
[329462104,1718379064863,-678.72,0.00024109,3]
[329462105,1718379064875,-678.72,0.00024109,3]
[329462106,1718379064888,-870.72,0.00024109,3]
[329462107,1718379064900,-678.72,0.00024109,3]
[329462108,1718379064911,-500.0,0.00024109,3]
[329462109,1718379064925,-2977.14,0.00024109,3]
[329462110,1718379064944,-678.72,0.00024109,3]
[329462111,1718379064958,-3021.26,0.00024109,3]
[329462112,1718379064976,-678.72,0.00024109,3]
[329462113,1718379065004,-2508.58,0.00024109,3]
[329462114,1718379065019,-1739.26,0.00024109,3]
[329462115,1718379065030,-500.0,0.00024109,3]
[329462116,1718379065052,-2130.88,0.00024109,3]
[329462117,1718379065077,-500.0,0.00024109,3]
[329462118,1718379065092,-500.0,0.00024109,3]
[329462119,1718379065105,-500.0,0.00024109,3]
[329462120,1718379065117,-170.79920074,0.00024109,3]
[329462121,1718379065130,-854.15,0.00024109,3]
[329462122,1718379065141,-2025.51,0.00024109,3]
[329462123,1718379065166,-2822.07,0.00024109,3]
[329462124,1718379065180,-10109.89,0.00024109,3]
[329462125,1718379065192,-500.0,0.00024109,3]
[329462126,1718379065207,-613.62594412,0.00024109,3]
[329462127,1718379065219,-579.88,0.00024109,3]
[329462128,1718379065239,-500.0,0.00024109,3]
[329462129,1718379065254,-2263.53,0.00024109,3]
[329462130,1718379065288,-837.68,0.00024109,3]
[329462131,1718379065302,-500.0,0.00024109,3]
[329462132,1718379065333,-996.01,0.00024109,3]
[329462133,1718379065351,-1017.14,0.00024109,3]
[329462134,1718379065380,-911.9,0.00024109,3]
[329462135,1718379065394,-1268.04,0.00024109,3]
[329462136,1718379065410,-500.0,0.00024109,3]
[329462137,1718379065430,-2703.03,0.00024109,3]
[329462138,1718379065441,-1553.97,0.00024109,3]
[329462139,1718379065468,-500.0,0.00024109,3]
[329462140,1718379065481,-237.43757349,0.00024109,3]
[329462141,1718379065493,-522.79,0.00024109,3]
[329462142,1718379065507,-500.0,0.00024109,3]
[329462143,1718379065520,-2243.81,0.00024109,3]
[329462144,1718379065533,-541.32797382,0.00024109,3]
[329462145,1718379065562,-2118.21,0.00024109,3]
[329462146,1718379065576,-714.68,0.00024109,3]
[329462147,1718379065590,-500.0,0.00024109,3]
[329462148,1718379065615,-279.176548,0.00024109,7]
[329462149,1718379065640,-500.0,0.00024109,3]
[329462150,1718379065678,-503.39,0.00024109,3]
[329462151,1718379065710,-1054.68,0.00024109,3]
[329462152,1718379065727,-863.98,0.00024109,3]
[329462153,1718379065760,-500.0,0.00024109,3]
[329462154,1718379065771,-1342.01,0.00024109,3]
[329462155,1718379065827,-500.0,0.00024109,3]
[329462156,1718379065850,-890.85,0.00024109,3]
[329462157,1718379065877,-500.0,0.00024109,3]
[329462158,1718379065896,-2955.61,0.00024109,3]
[329462159,1718379065913,-500.0,0.00024109,3]
[329462160,1718379065929,-500.0,0.00024109,3]
[329462161,1718379065950,-2016.12,0.00024109,3]
[329462162,1718379065991,-914.67,0.00024109,3]
[329462163,1718379066024,-1182.54,0.00024109,3]
[329462164,1718379066038,-417.57047115,0.00024109,3]
[329462165,1718379066057,-500.0,0.00024109,3]
[329462166,1718379066088,-500.0,0.00024109,3]
[329462167,1718379066127,-862.52,0.00024109,3]
[329462168,1718379066164,-1425.28,0.00024109,3]
[329462169,1718379066197,-500.0,0.00024109,3]
[329462170,1718379066219,-2061.12,0.00024109,3]
[329462171,1718379066253,-500.0,0.00024109,3]
[329462172,1718379066275,-5087.55,0.00024109,3]
[329462173,1718379066296,-500.0,0.00024109,3]
[329462174,1718379066351,-1011.55,0.00024109,3]
[329462175,1718379066379,-500.0,0.00024109,3]
[329462176,1718379066404,-500.0,0.00024109,3]
[329462177,1718379066419,-2054.84,0.00024109,3]
[329462178,1718379066431,-963.96,0.00024109,3]
[329462179,1718379066442,-500.0,0.00024109,3]
[329462180,1718379066455,-501.48,0.00024109,3]
[329462181,1718379066470,-701.5,0.00024109,3]
[329462182,1718379066483,-7259.57,0.00024109,3]
[329462183,1718379066499,-500.0,0.00024109,3]
[329462184,1718379066536,-4619.28,0.00024109,3]
[329462185,1718379066560,-500.0,0.00024109,3]
[329462186,1718379066575,-1267.82,0.00024109,3]
[329462187,1718379066599,-1238.7,0.00024109,3]
[329462188,1718379066631,-500.0,0.00024109,3]
[329462189,1718379066657,-413.54196905,0.00024109,3]
[329462190,1718379066676,-2012.02,0.00024109,3]
[329462191,1718379066690,-500.0,0.00024109,3]
[329462192,1718379066707,-500.0,0.00024109,3]
[329462193,1718379066736,-500.0,0.00024109,3]
[329462194,1718379066753,-536.4016171,0.00024109,3]
[329462195,1718379066766,-500.0,0.00024109,3]
[329462196,1718379066790,-643.47,0.00024109,3]
[329462197,1718379066802,-815.38,0.00024109,3]
[329462198,1718379066821,-500.0,0.00024109,3]
[329462199,1718379066838,-500.0,0.00024109,3]
[329462200,1718379066849,-500.0,0.00024109,3]
[329462201,1718379066862,-1438.37,0.00024109,3]
[329462202,1718379066873,-500.0,0.00024109,3]
[329462203,1718379066883,-2378.98,0.00024109,3]
[329462204,1718379066898,-500.0,0.00024109,3]
[329462205,1718379066908,-500.0,0.00024109,3]
[329462206,1718379066928,-500.0,0.00024109,3]
[329462207,1718379066949,-500.0,0.00024109,3]
[329462208,1718379066971,-939.43,0.00024109,3]
[329462209,1718379066983,-500.0,0.00024109,3]
[329462210,1718379067005,-151.0,0.00024109,7]
[329462211,1718379067024,-500.0,0.00024109,3]
[329462212,1718379067056,-500.0,0.00024109,3]
[329462213,1718379067068,-582.59,0.00024109,3]
[329462214,1718379067095,-1876.71,0.00024109,3]
[329462215,1718379067115,-1587.0,0.0002411,2]
[329462216,1718379067126,-575.0,0.0002411,2]
[329462217,1718379067145,-33156.0,0.0002411,2]
[329462218,1718379067158,-1052.0,0.0002411,2]
[329462219,1718379067176,-3733.526,0.00024119,2]
[329462220,1718379067187,-241.20434062,0.00024122,2]
[329462221,1718379067208,-150.0,0.00024126,2]
[329462222,1718379067245,-150.0,0.00024133,2]
[329462223,1718379067262,-157.78300712,0.00024143,2]
[329462224,1718379067286,-2078.54556027,0.00024143,2]
[329462225,1718379067308,-1280.748,0.00024153,2]
[329462226,1718379067323,-255.231,0.00024153,2]
[329462227,1718379067360,-4546.331,0.00024153,2]
[329462228,1718379067376,-808.0,0.00024153,2]
[329462229,1718379067402,-24268.065,0.00024153,2]
[329462230,1718379067413,-1577.996,0.00024153,2]
[329462231,1718379067435,-1065.0,0.00024153,2]
[329462232,1718379067454,-1176.467,0.00024153,2]
[329462233,1718379067469,-405.66397535,0.00024166,2]
[329462234,1718379067488,-241.20434062,0.00024192,2]
[329462235,1718379067502,-1500.0,0.00024196,2]
[329462236,1718379067514,-275.5,0.000242,2]
[329462237,1718379067527,-210.34781756,0.000242,2]
[329462238,1718379067552,-155.25371207,0.00024215,2]
[329462239,1718379067566,-96750.78052621,0.0002422,2]
[329462240,1718379068120,-11558.5157322,0.0002422,2]
[329462241,1718379068140,-2996.94929699,0.0002422,2]
[329462242,1718379068404,-500.0,0.00024109,3]
[329462243,1718379068416,-18779.29245418,0.0002422,2]
[329462244,1718379068431,-1324.29662438,0.0002422,2]
[329462245,1718379068745,-1351.16593092,0.00024013,2]
[329462246,1718379068765,-42086.13094152,0.0002422,2]
[329462247,1718379068786,-29321.09744362,0.0002422,2]
[329462248,1718379068803,-1214.29546777,0.0002422,2]
[329462249,1718379068821,-312.07057089,0.0002422,2]
[329462250,1718379069127,-155.0,0.00024013,2]
[329462251,1718379069144,-193.495,0.00024109,3]
[329462252,1718379069168,-306.505,0.00024109,3]
[329462253,1718379069206,-23785.75644675,0.0002422,2]
[329462254,1718379069237,-265.15710906,0.0002422,2]
[329462256,1718379288531,-47559.14371723,0.0001298,2]
[329462257,1718379288569,-2372.39308394,0.00013898,2]
[329462258,1718379288621,-209.6737914,0.00013899,2]
[329462259,1718379288667,-1500.0,0.00013899,2]
[329462260,1718379288719,-163.27789293,0.000139,2]
[329462261,1718379288770,-522.92042804,0.00013999,2]
[329462262,1718379288841,-300.0,0.00013999,2]
[329462263,1718379288908,-631108.48590657,0.00014,2]
[329462265,1718379753934,-522.92042804,0.00013846,2]
[329462266,1718379753982,-258.31960914,0.00013847,2]
[329462267,1718379754035,-12921.57,0.00013849,2]
[329462268,1718379754070,-567.0,0.00013851,2]
[329462269,1718379754105,-251.87828571,0.00013858,2]
[329462270,1718379754140,-1795.39402106,0.00013997,2]
[329462271,1718379754178,-500.25333624,0.00013998,2]
[329462272,1718379754214,-302.17365557,0.00013998,2]
[329462273,1718379754257,-213.98814988,0.00013998,2]
[329462274,1718379754316,-295.83967052,0.00013998,2]
[329462275,1718379754353,-2195.90453048,0.00013999,2]
[329462276,1718379754398,-209.37978692,0.00013999,2]
[329462277,1718379754494,-52627.40891354,0.00014,2]
[329462278,1718379754577,-634.5400738,0.00014,2]
[329462279,1718379754638,-2500.0,0.000149,2]
[329462280,1718379754682,-677.0567,0.000149,2]
[329462281,1718379754731,-73526.3728391,0.00015,2]
[329462282,1718379762131,-64119.84258424,0.00015,2]
[329462283,1718379762178,-499.99,0.00015,2]
[329462284,1718379762214,-758.19,0.00015,2]
[329462285,1718379762271,-1204.87,0.00015,2]
[329462286,1718379781470,1043.57163077,0.00015,2]
[329462287,1718379787311,2500.0,0.000149,2]
[329462288,1718379803396,496.38834671,0.00015,2]
[329462289,1718379817173,3035.5136,0.00013899,2]
[329462298,1718380235026,-258.31960914,0.00017159,2]
[329462300,1718380235055,-12437.3981,0.0001716,2]
[329462301,1718380235069,-3150.41,0.0001726,2]
[329462302,1718380235086,-2464.0,0.000193,2]
[329462303,1718380235097,-801.71079841,0.000193,2]
[329462304,1718380235108,-651.33,0.00019411,2]
[329462305,1718380235118,-499.99,0.00019452,2]
[329462306,1718380235168,-150.0,0.00019479,2]
[329462307,1718380235216,-206.28,0.00019479,7]
[329462308,1718380235228,-799.0,0.000195,2]
[329462309,1718380235252,-474.65011001,0.00019998,2]
[329462310,1718380235270,-298.18148602,0.00019998,2]
[329462311,1718380235302,-542.8956905,0.00019998,2]
[329462312,1718380235314,-156.20084954,0.00019999,2]
[329462313,1718380235337,-6253.29174589,0.0002,2]
[329462314,1718380235368,-1779.87597909,0.0002,2]
[329462315,1718380235411,-256.59095034,0.0002,2]
[329462316,1718380235445,-1134.57912358,0.0002,2]
[329462317,1718380235472,-2712.45254336,0.0002,7]
[329462318,1718380235489,-3897.0091964,0.0002,2]
[329462319,1718380235515,-226.78109354,0.000201,2]
[329462320,1718380235527,-1000.0,0.00020515,2]
[329462321,1718380235616,-19727.92016164,0.000207,2]
[329462322,1718380235641,-1250.0,0.00021,2]
[329462323,1718380235661,-11725.0,0.00021,5]
[329462324,1718380235689,-806.58,0.00021155,2]
[329462325,1718380235736,-200.0,0.00021156,2]
[329462326,1718380235748,-250.0,0.0002116,2]
[329462327,1718380235780,-23900.0,0.00021186,2]
[329462328,1718380235810,-709.61,0.00021332,2]
[329462329,1718380235826,-180.038708,0.0002137,2]
[329462330,1718380235841,-709.61,0.0002139,2]
[329462331,1718380235861,-1000.0,0.00021392,2]
[329462332,1718380235906,-211.7338,0.00021427,2]
[329462333,1718380235945,-200.0,0.00021428,2]
[329462334,1718380235960,-150.0,0.00021448,2]
[329462335,1718380235984,-709.61,0.00021449,2]
[329462336,1718380236037,-1355.83,0.00021463,2]
[329462337,1718380236055,-709.61,0.00021507,2]
[329462338,1718380236081,-17131.851,0.00021507,2]
[329462339,1718380236092,-250.0,0.00021551,2]
[329462340,1718380236109,-709.61,0.00021566,2]
[329462341,1718380236123,-160.87667664,0.00021606,2]
[329462342,1718380236139,-709.61,0.00021624,2]
[329462343,1718380236172,-651.33,0.00021675,2]
[329462344,1718380236204,-709.61,0.00021683,2]
[329462345,1718380236226,-709.61,0.00021741,2]
[329462346,1718380236238,-159.607,0.00021763,2]
[329462347,1718380236272,-605.28089426,0.00021783,2]
[329462348,1718380236316,-709.61,0.000218,2]
[329462349,1718380236334,-709.61,0.00021858,2]
[329462350,1718380236345,-709.61,0.00021917,2]
[329462351,1718380236366,-250.0,0.00021918,2]
[329462352,1718380236392,-576.55,0.00021918,2]
[329462353,1718380236432,-709.61,0.00021975,2]
[329462354,1718380236459,-709.61,0.00022034,2]
[329462355,1718380236470,-709.61,0.00022092,2]
[329462356,1718380236481,-225.73851601,0.0002211,2]
[329462357,1718380236491,-709.61,0.00022151,2]
[329462358,1718380236504,-180.038708,0.00022192,2]
[329462359,1718380236552,-709.61,0.00022209,2]
[329462360,1718380236595,-709.61,0.00022268,2]
[329462361,1718380236623,-709.61,0.00022326,2]
[329462362,1718380236634,-709.61,0.00022385,2]
[329462363,1718380236660,-163.94,0.00022429,2]
[329462364,1718380236690,-709.61,0.00022443,2]
[329462365,1718380236707,-500.0,0.00022602,2]
[329462366,1718380236721,-500.0,0.00022602,2]
[329462367,1718380236733,-3610.529,0.00022828,2]
[329462368,1718380236745,-5000.0,0.00023,2]
[329462369,1718380236756,-1300.0,0.00023,2]
[329462370,1718380236769,-180.038708,0.00023014,2]
[329462371,1718380236791,-300.0,0.00023131,2]
[329462373,1718380236808,-171.05,0.00023141,2]
[329462375,1718380236820,-500.0,0.0002315,2]
[329462377,1718380236832,-165.63,0.0002329,2]
[329462379,1718380236843,-3620.171,0.00023343,2]
[329462381,1718380236879,-1222.0,0.00023371,2]
[329462383,1718380236905,-368.61022122,0.00023435,2]
[329462385,1718380236917,-800.0,0.00023534,2]
[329462386,1718380236938,-500.0,0.00023698,2]
[329462388,1718380236951,-500.0,0.00023698,2]
[329462391,1718380236971,-400.0,0.000237,8]
[329462393,1718380237004,-150.0,0.00023724,2]
[329462395,1718380237015,-150.0,0.00023766,2]
[329462396,1718380237027,-155.0,0.000238,2]
[329462398,1718380237044,-800.0,0.000238,8]
[329462400,1718380237078,-180.038708,0.00023836,2]
[329462402,1718380237093,-11467.69331564,0.0002388,2]
[329462404,1718380237104,-806.58,0.00023895,2]
[329462406,1718380237116,-1300.0,0.000239,8]
[329462408,1718380237128,-158.73126334,0.00023909,2]
[329462410,1718380237138,-594.16268766,0.00023909,2]
[329462415,1718380237192,-330.42782799,0.00023909,2]
[329462417,1718380237241,-215.0,0.00023909,2]
[329462419,1718380237265,-1000.0,0.00023909,2]
[329462422,1718380237289,-21728.3686545,0.00023909,2]
[329462425,1718380237310,-443.7326138,0.00023909,2]